Cogmind - Beta 9.4 *** ADVENTURER MODE // 2020.06.16 @ 19:19:41 Player: Scyralis Result: Destroyed by DAS Turret with DAS Cannon Performance ------------- Evolutions (0) 0 Regions Visited (3) 600 Robots Destroyed (25) 125 Value Destroyed (429) 429 Prototype IDs (0) 0 Alien Tech Used (0) 0 Bonus (-69) -69 TOTAL SCORE: 1085 Bonus ------- Friendly Fire -69 Cogmind --------- Core Integrity 0/250 Matter 300/300 Energy 100/100 System Corruption 0% Temperature Cool (0) Movement Core (550) Ox10 Location -10/Exiles Parts ------- > --- POWER (1) -------- (None) > --- PROPULSION (2) --- (None) > --- UTILITY (2) ------ High-capacity Storage Unit > --- WEAPON (2) ------- (None) > --- INVENTORY (12) --- Large Matter Pod (150) Utility Shielding Grenade Launcher Peak State ------------ > --- POWER ------------ Light Nuclear Core > --- PROPULSION ------- Aluminum Leg Aluminum Leg > --- UTILITY ---------- Improved Heat Sink High-capacity Storage Unit > --- WEAPON ----------- EM Pulse Gun EM Pulse Gun > --- INVENTORY -------- Heat Sink Utility Shielding Grenade Launcher Mining Claw [Rating: 11] Favorites ----------- Power Light Nuclear Core Engine Ion Engine Power Core Light Nuclear Core Propulsion Aluminum Leg Leg Aluminum Leg Utility High-capacity Storage Unit Device Improved Heat Sink Storage High-capacity Storage Unit Weapon EM Pulse Gun Energy Gun EM Pulse Gun Launcher Grenade Launcher Slashing Weapon Mining Claw Build | -11 -10 -10 -10 ------- Run | Scr Mat Min Exi Slots Evolved . | . . . . Power . | . . . . Propulsion . | . . . . Utility . | . . . . Weapon . | . . . . Parts Attached 18 | 7 7 3 1 Power 2 | 1 1 . . Engine 1 | 1 . . . Core 1 | . 1 . . Reactor . | . . . . Propulsion 3 | 2 . 1 . Treads . | . . . . Leg 3 | 2 . 1 . Wheel . | . . . . Hover . | . . . . Flight . | . . . . Utility 5 | 2 2 1 . Device 3 | 1 1 1 . Storage 2 | 1 1 . . Processor . | . . . . Hackware . | . . . . Protection . | . . . . Artifact . | . . . . Weapon 8 | 2 4 1 1 Energy Gun 5 | 2 2 1 . Energy Cannon . | . . . . Ballistic Gun . | . . . . Ballistic Cannon . | . . . . Launcher 1 | . 1 . . Special Weapon . | . . . . Impact Weapon . | . . . . Slashing Weapon 2 | . 1 . 1 Piercing Weapon . | . . . . Special Melee Weapon . | . . . . Unidentified Prototypes . | . . . . Parts Lost 7 | . . 1 6 Power 1 | . . . 1 Propulsion 2 | . . . 2 Utility 1 | . . . 1 Weapon 3 | . . 1 2 Highest Loss Streak 6 | . . 1 6 Average Slot Usage (%) 93 | . 93 96 84 Engine 1 | . 4 . . Core 12 | . 9 14 13 Leg 27 | . 28 28 27 Device 11 | . 8 14 14 Storage 14 | . 14 14 14 Energy Gun 23 | . 25 24 14 Naked Turns . | . . . . Heaviest Build 42 | 12 42 42 42 Greatest Support 20 | 20 20 20 20 Greatest Overweight (x) 10 | . 2 2 10 Average Overweight (x) 1 | . 1 1 1 Largest Inventory Capacity 12 | 6 12 12 12 Average Capacity 11 | 5 11 12 12 Most Carried 4 | 4 4 4 4 Average Carried 2 | . 1 2 3 Final Capacity 12 | 6 12 12 12 Final Carried 3 | . 2 3 3 Class Distribution -------------------- 100% | Mutant Dominant Class ---------------- Mutant | -10/Materials Mutant | -10/Mines Mutant | -10/Exiles Resources | -11 -10 -10 -10 ----------- Run | Scr Mat Min Exi Matter Collected 430 | 169 221 40 . Remotely 105 | 105 . . . Salvage Created 809 | 84 321 404 . Parts 54 | 4 25 25 . Haulers Intercepted 1 | . 1 . . Recyclers Shooed 2 | . . 2 . Parts Field Recycled . | . . . . Retrieved Matter . | . . . . Parts Self-Destructed . | . . . . Prevented . | . . . . Kills | -11 -10 -10 -10 ------- Run | Scr Mat Min Exi Combat Hostiles Destroyed 10 | . 4 6 . Guns 7 | . 1 6 . AOE 3 | . 3 . . Classes Destroyed 7 | 2 4 1 . Worker 3 | . 3 . . Builder 6 | . 5 1 . Tunneler 3 | 1 . 2 . Hauler 1 | . 1 . . Recycler 2 | 1 . 1 . Swarmer 2 | . . 2 . Grunt 8 | . 4 4 . Best Kill Streak 9 | 1 9 3 . Combat Bots Only 3 | . 3 3 . Max Kills in Single Turn 2 | 1 2 2 . Gunslinging 1 | . . 1 . Exploded 2 | . 2 . . Melee . | . . . . Uniques/NPCs Destroyed . | . . . . Combat | -11 -10 -10 -10 -------- Run | Scr Mat Min Exi Damage Taken 807 | . 234 183 390 Core 250 | . 42 11 197 Absorbed by Shields . | . . . . Core Remaining (%) 100 | 100 . . . Volleys Fired 72 | 6 32 34 . Largest 2 | 2 2 2 . Hottest 80 | 80 80 80 . Shots Fired 121 | 12 53 56 . Gun 115 | 12 47 56 . Cannon . | . . . . Launcher 6 | . 6 . . Special . | . . . . Kinetic . | . . . . Thermal 53 | 12 41 . . Explosive 6 | . 6 . . Electromagnetic 62 | . 6 56 . Robot Hit Streak 34 | 12 34 10 . Robot Miss Streak 1 | . 1 1 . Penetration Max . | . . . . Secondary Targets 1 | . . 1 . Max Gunslinging Chain 1 | . . 1 . Shots Hit Robots 101 | 12 44 44 1 Core Hits 42 | 3 23 16 . Critical Hits . | . . . . Critical Kills . | . . . . Critical Parts Destroyed . | . . . . Melee Attacks 5 | . 4 . 1 Impact . | . . . . Slashing 5 | . 4 . 1 Piercing . | . . . . Sneak Attacks . | . . . . Combat Hostiles . | . . . . Follow-up Attacks . | . . . . Damage Inflicted 1880 | 135 1030 646 69 Guns 1149 | 135 431 583 . Cannons . | . . . . Explosions 662 | . 599 63 . Melee 69 | . . . 69 Ramming . | . . . . Kinetic . | . . . . Thermal 786 | 135 588 63 . Explosive 375 | . 375 . . Electromagnetic 650 | . 67 583 . Impact . | . . . . Slashing 69 | . . . 69 Piercing . | . . . . Highest Corruption . | . . . . Average Corruption . | . . . . Corruption Purged . | . . . . Overload Shots . | . . . . Overflow Damage 139 | . 127 3 9 Projectiles . | . . . . Explosions 130 | . 127 3 . Melee 9 | . . . 9 Knockbacks . | . . . . Impact . | . . . . Kinetic . | . . . . Secondary . | . . . . Self-Inflicted Damage 44 | . . 44 . Shots 2 | . . 2 . Rammed . | . . . . Targets Rammed . | . . . . Kicked . | . . . . Crushed . | . . . . Highest Temperature 219 | 72 219 22 . Average Temperature 63 | 29 76 13 . Received Heat Transfer 266 | . 174 72 20 Effects 3 | . 3 . . Interference 3 | . 3 . . Siege Activations . | . . . . Robots Corrupted . | . . . . Combat Hostiles . | . . . . Parts Fried 3 | . 1 2 . Impact Corruptions . | . . . . Robots Melted . | . . . . Combat Hostiles . | . . . . Parts Melted 2 | 1 1 . . Heat Transferred 1450 | 300 1050 100 . Parts Sabotaged . | . . . . Parts Stolen . | . . . . Parts Stripped . | . . . . Power Chain Reactions 3 | . 1 2 . Missiles Intercepted . | . . . . Alert | -11 -10 -10 -10 ------- Run | Scr Mat Min Exi Peak Influence 194 | 10 194 160 . Average Influence 53 | 2 78 36 . Maximum Alert Level . | . . . . Low Security (%) 100 | 100 100 100 . Level 1 . | . . . . Level 2 . | . . . . Level 3 . | . . . . Level 4 . | . . . . Level 5 . | . . . . High Security . | . . . . Max Security . | . . . . Squads Dispatched 1 | . 1 . . Investigation 1 | . 1 . . Extermination . | . . . . Reinforcement . | . . . . Assault . | . . . . Garrison . | . . . . Intercept . | . . . . Construction Impeded . | . . . . Haulers Reinforced . | . . . . Stealth | -11 -10 -10 -10 --------- Run | Scr Mat Min Exi Distress Signals . | . . . . Communications Jammed . | . . . . Distress Signals . | . . . . Times Spotted 24 | . 6 7 11 Peak Tracking Total 14 | . 4 3 14 Tactical Retreats 4 | . 2 1 1 Traps | -11 -10 -10 -10 ------- Run | Scr Mat Min Exi Traps Triggered . | . . . . Indirectly . | . . . . Trap Hack Attempts . | . . . . Triggered . | . . . . Disarmed . | . . . . Reprogrammed . | . . . . Reused . | . . . . Traps Extracted . | . . . . Installed . | . . . . Triggered . | . . . . Machines | -11 -10 -10 -10 ---------- Run | Scr Mat Min Exi Machines Disabled 4 | . 4 . . Max in Single Turn 2 | . 2 . . Machines Sabotaged . | . . . . Garrisons Compromised . | . . . . Overloaded Fab Kills . | . . . . Fab Network Shutdowns . | . . . . Hacking | -11 -10 -10 -10 --------- Run | Scr Mat Min Exi Machines Accessed 3 | . 3 . . Terminals 3 | . 3 . . Fabricators . | . . . . Repair Stations . | . . . . Recycling Units . | . . . . Scanalyzers . | . . . . Garrison Access . | . . . . Total Hacks 12 | . 12 . . Successful 11 | . 11 . . Failed 1 | . 1 . . Catastrophic . | . . . . Database Lockouts . | . . . . Manual . | . . . . Terminals 12 | . 12 . . Fabricators . | . . . . Repair Stations . | . . . . Recycling Units . | . . . . Scanalyzers . | . . . . Garrison Access . | . . . . Terminal Hacks 11 | . 11 . . Record 4 | . 4 . . Branch Access Points 1 | . 1 . . Emergency Access Points 2 | . 2 . . Locate Traps 2 | . 2 . . Dispatch Records 1 | . 1 . . Hauler Manifests 1 | . 1 . . Fabricator Hacks . | . . . . Repair Station Hacks . | . . . . Recycling Unit Hacks . | . . . . Scanalyzer . | . . . . Garrison Access Hacks . | . . . . Unauthorized Hacks . | . . . . Terminals . | . . . . Fabricators . | . . . . Repair Stations . | . . . . Recycling Units . | . . . . Scanalyzers . | . . . . Garrison Access . | . . . . Data Cores Recovered . | . . . . Used . | . . . . Hacking Detections 2 | . 2 . . Full Trace Events 2 | . 2 . . Feedback Events . | . . . . Feedback Blocked . | . . . . Robot Schematics Acquired . | . . . . Robots Built . | . . . . Matter . | . . . . Time . | . . . . Total Robot Build Rating . | . . . . Part Schematics Acquired . | . . . . Parts Built . | . . . . Matter . | . . . . Time . | . . . . Total Part Build Rating . | . . . . Parts Repaired . | . . . . Time . | . . . . Parts Recycled . | . . . . Recycled Matter . | . . . . Retrieved Matter . | . . . . Retrieved Components . | . . . . Parts Scanalyzed . | . . . . Part Schematics Acquired . | . . . . Parts Damaged . | . . . . Bothacking | -11 -10 -10 -10 ------------ Run | Scr Mat Min Exi Used RIF Installer . | . . . . Robots Hacked . | . . . . Non-combat . | . . . . Combat . | . . . . Robot Hacks Applied . | . . . . Relay Couplers Released . | . . . . Robots Rewired . | . . . . Allies Hacked . | . . . . Hacks Repelled . | . . . . Allies | -11 -10 -10 -10 -------- Run | Scr Mat Min Exi Total Allies . | . . . . Largest Group . | . . . . Highest-Rated Group . | . . . . Highest-Rated Ally . | . . . . Total Orders . | . . . . Ally Attacks . | . . . . Total Damage . | . . . . Kills . | . . . . Allies Corrupted . | . . . . Allies Melted . | . . . . Intel | -11 -10 -10 -10 ------- Run | Scr Mat Min Exi Robot Analysis Total . | . . . . Derelict Logs Recovered 1 | . . 1 . Drone Launches . | . . . . Drone Recoveries . | . . . . Exploration | -11 -10 -10 -10 ------------- Run | Scr Mat Min Exi Turns Passed 1196 | 70 471 473 182 Spaces Moved 583 | 36 212 219 116 Core 7 | 6 . . 1 Treads . | . . . . Legs 576 | 30 212 219 115 Wheels . | . . . . Hover . | . . . . Flight . | . . . . Fastest Speed 50 | 50 120 150 150 Average Speed 162 | 108 167 171 155 Slowest Speed 550 | 120 180 180 550 Overloaded Moves . | . . . . Propulsion Burnouts . | . . . . Robots Hopped . | . . . . Cave-ins Triggered . | . . . . Exploration Rate (%) 33 | 4 38 56 37 Regions Visited 3 Branch Regions 2 Pre-discovered Areas . | . . . . Known Exits Taken 1 | . 1 . . Unknown Exits Taken 2 | 1 . 1 . Scrap Searched 2 | . . 2 . Spaces Dug 1 | . 1 . . Terrain Destroyed 106 | . 99 7 . Melee 1 | . 1 . . Projectile . | . . . . AOE 105 | . 98 7 . Actions | -11 -10 -10 -10 --------- Run | Scr Mat Min Exi Total 703 | 55 269 260 119 Wait . | . . . . Move 580 | 35 211 218 116 Hop . | . . . . Pick Up 19 | 7 8 3 1 Fast Attach . | . . . . Attach 11 | 7 3 . 1 Detach 1 | . 1 . . Swap 7 | . 4 3 . Drop 8 | . 6 2 . Fire 72 | 6 32 34 . Melee 5 | . 4 . 1 Ram . | . . . . Kick . | . . . . Crush . | . . . . Escape Stasis . | . . . . Rewire . | . . . . Trap . | . . . . Miscellaneous . | . . . . Route ------- -11/Scrapyard -10/Materials (discovered 2 exits: *Min x2) -10/Mines -10/Exiles History --------- Turn | Location | Event 2 | -11/Scrapyard | Discovered new exit (range 16) 71 | -11/Scrapyard | Entered Materials 244 | -10/Materials | Discovered new exit (range 13) 335 | -10/Materials | Build established: Mutant 359 | -10/Materials | Identified exit to Mines 542 | -10/Materials | Entered Mines 808 | -10/Mines | Learned Materials stockpile data 1008 | -10/Mines | Deemed a non-threat by the Exiles lab entrance 1009 | -10/Mines | Discovered new exit (range 5) 1015 | -10/Mines | Entered Exiles 1053 | -10/Exiles | Met 8R-AWN 1077 | -10/Exiles | Met EX-HEX 1134 | -10/Exiles | Met EX-DEC 1182 | -10/Exiles | Attacked by the Exiles 1190 | -10/Exiles | Core integrity fell below 50% 1196 | -10/Exiles | Core integrity fell below 20% 1197 | -10/Exiles | Destroyed by DAS Turret with DAS Cannon Last Messages --------------- Anyway, I've got to get back to poking and prodding these nasty little guys. Go see BIN. I can't imagine you'll want to stay in our boring little cave for long, and we could use some help with the project in the back. EX-DEC: Ah I see we have a visitor. One wrong move in here and I'll invert your atomic chain! 01136_ EX-DEC: "Oops, I hope HEX didn't hear that..." 01164_ Acquired Lrg. Matter Pod. 01181_ Sneak attack on A-02 Transporter. 01181_ Destroyed Ion Engine. 01182_ EXILES: Hostile robot within lab perimeter. Defensive protocols time, folks! 01184_ Mining Claw destroyed. 01187_ Aluminum Leg destroyed. 01187_ Lgt. Nuclear Core destroyed. 01191_ EM Pulse Gun destroyed. 01191_ Imp. Heat Sink destroyed. 01193_ Aluminum Leg destroyed. 01193_ Knocked back. 01194_ EX-BIN: "I just want to science!" 01195_ Knocked back. Map ----- +----------------------------------------------------+ | ?????????????????????????????????????????????????? | | ?????????????????????????????????????????????????? | | ?????????????????????????????????????????????????? | | ?????????????????????????????????????????????????? | | ?????????????????????????????????????????????????? | | ?????????????????????????????????????????????????? | | ??????????????????????????????????????????????#??? | | ??????????????????????????????????????? #####""?"" | | ????????????????????????????????????? " """ | | ??????????????????????????????????? "" | | ?????????????????? ? ?????????????? " | | ??????????????? ???????????? | | ?????????????? ????????????? | | ????????????? ????????????? | | ?????????????" ?????????????? | | ???????????? ???????????? | | ???????????? ????????????#""" | | ???????????"" ""?????????????#""" | | ???????????" """?????????????#"""" | | ???????????" ""????????????##"" | | ??????????" ########??####"""" | | ??????????"" ##aaa####""" | | ??????????" t c a """" | | ??????????"" a a | | ??????????"""" c z | | ??????????# @ " | | ??????????#" " "" "" | | ???????????"""" ""## ##""" " " ""# | | ???????????"" ""#### ######""" """# | | ??????????#" """"##??# #????###""""## | | ??????????#""" """#??## ####???######? | | ???????????# ""##??# "!#?????????? | | ???????????#"" """##???#" !#?????????? | | ????????????#""" ##????#" "#?????????? | | ????????????##"""" ##?????#!!""!"#?????????? | | ??????????????## #??????########?????????? | | ???????????????##### ##???????????????????????? | | ???????????????????## ?????????????????????????? | | ????????????????????# ?????????????????????????? | | ????????????????????# ?????????????????????????? | | ????????????????????# ?????????????????????????? | | ????????????????????# ?????????????????????????? | | ????????????????????? ?????????????????????????? | | ?????????????????????????????????????????????????? | | ?????????????????????????????????????????????????? | | ?????????????????????????????????????????????????? | | ?????????????????????????????????????????????????? | | ?????????????????????????????????????????????????? | | ?????????????????????????????????????????????????? | | ?????????????????????????????????????????????????? | +----------------------------------------------------+ Best States ------------- Heat Dissipation 39 Energy Generation 14 Energy Capacity 250 Matter Stores 300 Matter Capacity 300 Sight Range 16 Terrain Scan Density 10 Resistance: KI 20 Resistance: TH 20 Resistance: EX 20 Resistance: EM 20 Resistance: I 20 Resistance: S 20 Resistance: P 20 Evasion (%) 40 Offensive Hacking 10 Item Schematics ----------------- None Robot Schematics ------------------ None Fabricated ------------ Nothing Alien Tech Used ----------------- None Achievements -------------- None Challenges ------------ None Game ------ Seed PowerIntegrityField Manual? 0 Play Time 00:07:28 Cumulative 28.6 hours Start 2020.06.16 @ 19:13:15 End 2020.06.16 @ 19:19:41 Sessions 1 Manual Loads 0 Difficulty Adventurer Special Mode None Game No. 25 Rogue 0 Adventurer 25 Explorer 0 Win Type - Total 0 Types 0/0/0/0/0/0/0 Lore% 15 Gallery% 35 Achievement% 24 Wizard Run 0 Options --------- ASCII 0 Keyboard 0 Movement Numpad Keybinds 0 Fullscreen 0 Font 12/Smallcaps Map View 83x54 Tactical HUD 1 Map Filters NONE Filters NONE Steam X RUN: 0ff4c017-cfcc-4ca8-99d2-77f6acbdd60a